fUSD/lending_fUSD_20260508
["ID","MTS","AMOUNT","RATE_DAILY","PERIOD"]
[421845206,1778209847000,-882.65363657,0.00013527,2]
[421845204,1778209847000,-1210987.33613819,0.00013526,2]
[421845232,1778209847000,-3079.23968153,0.00013625,2]
[421845205,1778209847000,-1130.93664706,0.00013527,2]
[421845222,1778209847000,-667.71116506,0.00013599,2]
[421845228,1778209847000,-150.0,0.00013603,2]
[421845254,1778209847000,-500.0,0.00013626,2]
[421845239,1778209847000,-500.0,0.00013626,2]
[421845237,1778209847000,-103715.47455637,0.00013626,2]
[421845234,1778209847000,-1119.1141549,0.00013626,3]
[421845249,1778209847000,-500.0,0.00013626,2]
[421845251,1778209847000,-500.0,0.00013626,2]
[421845256,1778209847000,-300.0,0.00013626,2]
[421845241,1778209847000,-500.0,0.00013626,2]
[421845260,1778209847000,-500.0,0.00013627,2]
[421845243,1778209847000,-431.70519323,0.00013626,2]
[421845245,1778209847000,-500.0,0.00013626,2]
[421845262,1778209847000,-1391.80334721,0.00013637,2]
[421845202,1778209847000,-2991.02904991,0.00013526,2]
[421845230,1778209847000,-398.19742983,0.00013617,2]
[421845201,1778209847000,-2032.05657403,0.00013526,2]
[421845191,1778209847000,-6392.22729523,0.00013526,2]
[421845214,1778209847000,-5000.0,0.00013527,2]
[421845171,1778209847000,-150.76496429,0.00013488,2]
[421845169,1778209847000,-150.0,0.00013488,2]
[421845173,1778209847000,-150.0,0.00013488,2]
[421845175,1778209847000,-150.0,0.00013488,2]
[421845179,1778209847000,-150.0,0.00013488,2]
[421845177,1778209847000,-150.0,0.00013488,2]
[421845181,1778209847000,-150.0,0.00013488,2]
[421845183,1778209847000,-302.23769167,0.00013525,2]
[421845185,1778209847000,-500.0,0.00013525,2]
[421845189,1778209847000,-6419.9744734,0.00013526,2]
[421845247,1778209847000,-500.0,0.00013626,2]
[421845190,1778209847000,-610.27273168,0.00013526,2]
[421845188,1778209847000,-141752.38670224,0.00013526,2]
[421845187,1778209847000,-500.0,0.00013525,2]
[421845193,1778209847000,-932.31258695,0.00013526,2]
[421845194,1778209847000,-255.22884988,0.00013526,2]
[421845192,1778209847000,-931.70372915,0.00013526,2]
[421845195,1778209847000,-793.0,0.00013526,2]
[421845196,1778209847000,-26491.54762082,0.00013526,2]
[421845197,1778209847000,-380.52932165,0.00013526,2]
[421845198,1778209847000,-93635.4769221,0.00013526,2]
[421845200,1778209847000,-3501.60150192,0.00013526,2]
[421845210,1778209847000,-5667.30259497,0.00013527,2]
[421845199,1778209847000,-455.182,0.00013526,2]
[421845212,1778209847000,-504.67850502,0.00013527,2]
[421845203,1778209847000,-1438.13450285,0.00013526,2]
[421845263,1778209847000,-500.0,0.00013673,2]
[421845258,1778209847000,-1803744.8209,0.00013627,2]
[421845266,1778209847000,-300.0,0.00013698,2]
[421845293,1778209847000,-150.0,0.00013834,2]
[421845294,1778209847000,-166.66,0.00013836,2]
[421845298,1778209847000,-500.0,0.00013886,2]
[421845295,1778209847000,-1680.0,0.00013841,2]
[421845309,1778209847000,-150.0,0.00013987,2]
[421845304,1778209847000,-3489.47276437,0.00013918,2]
[421845312,1778209847000,-667.71116498,0.00014033,2]
[421845310,1778209847000,-1334.88805863,0.00014,2]
[421845311,1778209847000,-250.0,0.00014,2]
[421845300,1778209847000,-940.01,0.00013896,2]
[421845302,1778209847000,-1000.0,0.000139,5]
[421845301,1778209847000,-1300.0,0.000139,5]
[421845290,1778209847000,-900.0,0.000138,5]
[421845303,1778209847000,-500.0,0.00013901,2]
[421845306,1778209847000,-150.0,0.00013949,2]
[421845305,1778209847000,-250.0,0.00013938,2]
[421845307,1778209847000,-166.66,0.00013973,2]
[421845317,1778209847000,-150.0,0.00014087,2]
[421845316,1778209847000,-3489.47276437,0.00014082,2]
[421845265,1778209847000,-255.0,0.00013677,2]
[421845318,1778209847000,-150.0,0.00014087,2]
[421845314,1778209847000,-1391.80334721,0.00014058,2]
[421845315,1778209847000,-150.0,0.00014064,2]
[421845321,1778209847000,-667.71116498,0.00014177,2]
[421845320,1778209847000,-166.66,0.0001411,2]
[421845319,1778209847000,-150.0,0.00014087,2]
[421845308,1778209847000,-1130.936647,0.00013985,2]
[421845296,1778209847000,-250.0,0.00013842,2]
[421845313,1778209847000,-152.84,0.00014042,2]
[421845299,1778209847000,-667.71116498,0.00013888,2]
[421845268,1778209847000,-166.66,0.00013699,2]
[421845292,1778209847000,-420.0,0.00013804,2]
[421845264,1778209847000,-500.0,0.00013673,2]
[421845267,1778209847000,-510.25482162,0.00013698,2]
[421845274,1778209847000,-300.0,0.00013726,2]
[421845271,1778209847000,-600.0,0.000137,5]
[421845273,1778209847000,-150.0,0.00013718,2]
[421845270,1778209847000,-5786.0,0.00013699,2]
[421845272,1778209847000,-500.0,0.000137,5]
[421845287,1778209847000,-150.0,0.00013787,2]
[421845276,1778209847000,-300.0,0.00013726,2]
[421845286,1778209847000,-150.0,0.00013787,2]
[421845288,1778209847000,-150.0,0.00013787,2]
[421845269,1778209847000,-44133.0,0.00013699,2]
[421845278,1778209847000,-33143.5146,0.00013727,2]
[421845297,1778209847000,-1391.80334721,0.00013848,2]
[421845275,1778209847000,-666.0,0.00013726,2]
[421845291,1778209847000,-700.0,0.000138,5]
[421845283,1778209847000,-3489.47276437,0.00013754,2]
[421845280,1778209847000,-150.0,0.00013737,2]
[421845279,1778209847000,-2000.0,0.00013727,2]
[421845277,1778209847000,-603.03,0.00013727,2]
[421845284,1778209847000,-1130.936647,0.00013756,2]
[421845282,1778209847000,-667.71116498,0.00013744,2]
[421845281,1778209847000,-155.83,0.0001374,2]
[421845285,1778209847000,-500.0,0.00013773,2]
[421845289,1778209847000,-403.25,0.000138,2]
[421845344,1778209848000,-150.0,0.0001441,2]
[421845346,1778209848000,-1130.936647,0.00014442,2]
[421845353,1778209848000,-1600.0,0.000146,5]
[421845348,1778209848000,-1391.80334721,0.00014479,2]
[421845350,1778209848000,-150.0,0.00014525,2]
[421845351,1778209848000,-246.73,0.00014556,2]
[421845352,1778209848000,-3489.47276437,0.00014573,2]
[421845354,1778209848000,-1200.0,0.000146,5]
[421845358,1778209848000,-2000.0,0.00014676,2]
[421845360,1778209848000,-150.0,0.00014687,2]
[421845355,1778209848000,-667.71116498,0.00014611,2]
[421845349,1778209848000,-150.0,0.00014487,2]
[421845356,1778209848000,-150.0,0.0001464,2]
[421845370,1778209848000,-150.0,0.00014756,2]
[421845371,1778209848000,-1500.0,0.00014768,2]
[421845361,1778209848000,-150.0,0.00014687,2]
[421845363,1778209848000,-300.0,0.000147,5]
[421845362,1778209848000,-1391.80334721,0.0001469,2]
[421845343,1778209848000,-3489.47276437,0.00014409,2]
[421845359,1778209848000,-150.0,0.00014687,2]
[421845357,1778209848000,-1130.936647,0.00014671,2]
[421845342,1778209848000,-1056.25,0.00014395,2]
[421845334,1778209848000,-218.86703557,0.00014321,2]
[421845340,1778209848000,-150.0,0.00014387,2]
[421845364,1778209848000,-200.0,0.000147,5]
[421845324,1778209848000,-1000.0,0.00014221,2]
[421845323,1778209848000,-1130.936647,0.00014214,2]
[421845322,1778209848000,-150.0,0.00014179,2]
[421845325,1778209848000,-866.06459534,0.00014221,2]
[421845327,1778209848000,-150.0,0.00014237,2]
[421845326,1778209848000,-150.0,0.00014237,2]
[421845328,1778209848000,-150.0,0.00014237,2]
[421845329,1778209848000,-3489.47276437,0.00014245,2]
[421845345,1778209848000,-150.76,0.00014413,2]
[421845333,1778209848000,-150.0,0.00014295,2]
[421845335,1778209848000,-667.71116498,0.00014322,2]
[421845330,1778209848000,-166.66,0.00014247,2]
[421845332,1778209848000,-1391.80334721,0.00014269,2]
[421845337,1778209848000,-500.31228504,0.00014333,2]
[421845347,1778209848000,-667.71116498,0.00014466,2]
[421845336,1778209848000,-500.19441014,0.00014333,2]
[421845338,1778209848000,-166.66,0.00014384,2]
[421845341,1778209848000,-150.0,0.00014387,2]
[421845339,1778209848000,-150.0,0.00014387,2]
[421845331,1778209848000,-427.26094185,0.0001425,2]
[421845366,1778209848000,-150.0,0.00014737,2]
[421845402,1778209848000,-221.05358462,0.00014986,2]
[421845367,1778209848000,-168.0,0.00014743,2]
[421845394,1778209848000,-168.22855453,0.00014973,2]
[421845395,1778209848000,-501.20580732,0.00014973,2]
[421845404,1778209848000,-279.99629778,0.00014986,2]
[421845396,1778209848000,-502.49873345,0.00014973,2]
[421845397,1778209848000,-500.0,0.00014973,2]
[421845405,1778209848000,-150.0,0.00014986,2]
[421845403,1778209848000,-162.57939543,0.00014986,2]
[421845398,1778209848000,-500.0,0.00014973,2]
[421845399,1778209848000,-234.66951995,0.00014986,2]
[421845392,1778209848000,-500.19565548,0.00014973,2]
[421845401,1778209848000,-151.52260831,0.00014986,2]
[421845407,1778209848000,-150.00000001,0.00014986,2]
[421845406,1778209848000,-150.0,0.00014986,2]
[421845408,1778209848000,-398.19742983,0.0001499,2]
[421845409,1778209848000,-398.19742983,0.0001499,2]
[421845411,1778209848000,-666.0,0.00014999,2]
[421845413,1778209848000,-8905795.49119497,0.00015,2]
[421845412,1778209848000,-300.0,0.00014999,2]
[421845414,1778209848000,-1867.09407842,0.00015,2]
[421845365,1778209848000,-3489.47276437,0.00014736,2]
[421845400,1778209848000,-203.39430873,0.00014986,2]
[421845390,1778209848000,-164.92263862,0.00014973,2]
[421845410,1778209848000,-300.0,0.00014999,2]
[421845393,1778209848000,-411.91380021,0.00014973,2]
[421845369,1778209848000,-667.71116498,0.00014755,2]
[421845372,1778209848000,-300.0,0.000148,5]
[421845375,1778209848000,-433.0,0.00014872,2]
[421845376,1778209848000,-292.26952898,0.00014874,2]
[421845374,1778209848000,-150.0,0.00014871,2]
[421845368,1778209848000,-152.0,0.00014743,2]
[421845377,1778209848000,-155.0,0.00014878,2]
[421845373,1778209848000,-200.0,0.000148,5]
[421845388,1778209848000,-500.56963679,0.00014973,2]
[421845378,1778209848000,-427.26094185,0.000149,2]
[421845380,1778209848000,-1130.936647,0.000149,2]
[421845379,1778209848000,-667.71116498,0.000149,2]
[421845381,1778209848000,-447.20395276,0.000149,3]
[421845384,1778209848000,-200.0,0.000149,5]
[421845383,1778209848000,-300.0,0.000149,5]
[421845386,1778209848000,-246.73,0.0001492,2]
[421845385,1778209848000,-152.84,0.00014919,2]
[421845389,1778209848000,-500.50592771,0.00014973,2]
[421845387,1778209848000,-500.07420065,0.00014973,2]
[421845391,1778209848000,-502.00040656,0.00014973,2]
[421845382,1778209848000,-3489.47276437,0.000149,2]
[421845417,1778209849000,-481.48526943,0.000149,2]
[421845415,1778209849000,-2701.2658332,0.00012572,2]
[421845419,1778209849000,-590.75782011,0.00015,2]
[421845418,1778209849000,-271.78853471,0.00015,2]
[421845422,1778209849000,-7628.721,0.00015,2]
[421845421,1778209849000,-722.8955016,0.00015,2]
[421845420,1778209849000,-2399.56596474,0.00015,2]
[421845423,1778209849000,-928.59613579,0.00015,2]
[421845416,1778209849000,-910.31807778,0.000149,2]
[421845424,1778209867000,1236.767953,7.945e-05,2]
[421845433,1778210010000,217.79308748,0.00030137,120]
[421845434,1778210296000,154.09,0.00010563,2]
[421845436,1778210420000,237.95,0.00030137,120]
[421845437,1778210570000,23161.29,0.00030136,120]
[421845438,1778210587000,-2348.795,0.00012771,2]
[421845454,1778210588000,-184.01969447,0.00013031,2]
[421845453,1778210588000,-158.89803237,0.00013031,2]
[421845451,1778210588000,-211.56638417,0.00013031,2]
[421845450,1778210588000,-500.0,0.00013031,2]
[421845449,1778210588000,-500.0,0.00013031,2]
[421845448,1778210588000,-150.0,0.0001303,2]
[421845452,1778210588000,-253.71992523,0.00013031,2]
[421845447,1778210588000,-1200.0,0.00013029,2]
[421845442,1778210588000,-418.28892741,0.00012972,2]
[421845444,1778210588000,-300.0,0.00013028,2]
[421845443,1778210588000,-181.23365623,0.00013022,2]
[421845445,1778210588000,-300.0,0.00013029,2]
[421845441,1778210588000,-646.78675358,0.00012972,2]
[421845457,1778210588000,-500.0,0.00013031,2]
[421845440,1778210588000,-250.0,0.00012872,2]
[421845439,1778210588000,-159.923,0.00012771,2]
[421845446,1778210588000,-300.0,0.00013029,2]
[421845455,1778210588000,-500.0,0.00013031,2]
[421845475,1778210588000,-500.0,0.00013031,2]
[421845458,1778210588000,-500.0,0.00013031,2]
[421845474,1778210588000,-500.0,0.00013031,2]
[421845476,1778210588000,-500.0,0.00013031,2]
[421845473,1778210588000,-500.0,0.00013031,2]
[421845471,1778210588000,-500.0,0.00013031,2]
[421845472,1778210588000,-500.0,0.00013031,2]
[421845470,1778210588000,-500.0,0.00013031,2]
[421845467,1778210588000,-500.0,0.00013031,2]
[421845456,1778210588000,-500.0,0.00013031,2]
[421845468,1778210588000,-500.0,0.00013031,2]
[421845466,1778210588000,-500.0,0.00013031,2]
[421845465,1778210588000,-500.0,0.00013031,2]
[421845464,1778210588000,-500.0,0.00013031,2]
[421845463,1778210588000,-500.0,0.00013031,2]
[421845462,1778210588000,-500.0,0.00013031,2]
[421845460,1778210588000,-500.0,0.00013031,2]
[421845461,1778210588000,-500.0,0.00013031,2]
[421845459,1778210588000,-500.0,0.00013031,2]
[421845469,1778210588000,-500.0,0.00013031,2]
[421845477,1778210589000,-597.43570479,0.00013031,2]
[421845479,1778210589000,-500.0,0.00013031,2]
[421845478,1778210589000,-500.0,0.00013031,2]
[421845482,1778210589000,-169.33292175,0.00013031,2]
[421845481,1778210589000,-500.0,0.00013031,2]
[421845480,1778210589000,-500.0,0.00013031,2]
[421845485,1778210647000,152.9602082,7.945e-05,2]
[421845484,1778210647000,730.7257838,7.945e-05,2]
[421845487,1778210827000,204.0,0.00030137,120]
[421845491,1778211032000,-159.924,0.00012771,2]
[421845493,1778211032000,-1433.3499809,0.00012771,2]
[421845492,1778211032000,-445.6860191,0.00012771,2]
[421845497,1778211032000,-694.13812607,0.00012931,2]
[421845496,1778211032000,-150.0,0.0001293,2]
[421845495,1778211032000,-300.0,0.0001293,2]
[421845498,1778211032000,-1272.80387378,0.00012931,2]
[421845499,1778211032000,-525.79675041,0.00012931,2]
[421845501,1778211032000,-485.4185,0.00012931,2]
[421845500,1778211032000,-552.0,0.00012931,2]
[421845494,1778211032000,-1200.0,0.0001293,2]
[421845504,1778211033000,-1190.69306236,0.00012931,2]
[421845503,1778211033000,-3403.37146852,0.00012931,2]
[421845502,1778211033000,-109118.78845907,0.00012931,2]
[421845538,1778211038000,-562.34535607,0.00012931,2]
[421845543,1778211038000,-2000.0,0.00012931,2]
[421845541,1778211038000,-3153.88746324,0.00012931,2]
[421845545,1778211038000,-454.37043806,0.00012931,2]
[421845548,1778211038000,-499.83800957,0.00012931,2]
[421845542,1778211038000,-1094.0,0.00012931,2]
[421845549,1778211038000,-1358.36788851,0.00012931,2]
[421845544,1778211038000,-2019.17477445,0.00012931,2]
[421845546,1778211038000,-606.96816968,0.00012931,2]
[421845547,1778211038000,-26491.54762082,0.00012931,2]
[421845614,1778211039000,-564.0886184,0.00013117,2]
[421845576,1778211039000,-500.0,0.00013116,2]
[421845573,1778211039000,-397.6864002,0.00013116,2]
[421845572,1778211039000,-500.0,0.00013116,2]
[421845567,1778211039000,-500.0,0.00013116,2]
[421845568,1778211039000,-271.38545646,0.00013116,2]
[421845566,1778211039000,-303.42820156,0.00013116,2]
[421845569,1778211039000,-500.0,0.00013116,2]
[421845565,1778211039000,-500.0,0.00013116,2]
[421845564,1778211039000,-500.0,0.00013116,2]
[421845563,1778211039000,-500.0,0.00013116,2]
[421845561,1778211039000,-500.0,0.00013116,2]
[421845562,1778211039000,-500.0,0.00013116,2]
[421845570,1778211039000,-500.0,0.00013116,2]
[421845571,1778211039000,-500.0,0.00013116,2]
[421845559,1778211039000,-213.7368084,0.00013116,2]
[421845557,1778211039000,-207.77662871,0.00013031,2]
[421845552,1778211039000,-1002.01916522,0.00013031,2]
[421845555,1778211039000,-500.0,0.00013031,2]
[421845550,1778211039000,-1290.32023939,0.00012931,2]
[421845577,1778211039000,-500.0,0.00013116,2]
[421845575,1778211039000,-500.0,0.00013116,2]
[421845610,1778211039000,-3869.91001202,0.00013117,2]
[421845580,1778211039000,-500.0,0.00013116,2]
[421845612,1778211039000,-16092.3183417,0.00013117,2]
[421845616,1778211039000,-336.22096291,0.00013117,2]
[421845608,1778211039000,-409.97,0.00013117,2]
[421845589,1778211039000,-500.0,0.00013116,2]
[421845592,1778211039000,-500.0,0.00013116,2]
[421845595,1778211039000,-500.0,0.00013116,2]
[421845606,1778211039000,-526.50344134,0.00013117,2]
[421845574,1778211039000,-500.0,0.00013116,2]
[421845587,1778211039000,-500.0,0.00013116,2]
[421845603,1778211039000,-718.40764809,0.00013117,2]
[421845585,1778211039000,-500.0,0.00013116,2]
[421845599,1778211039000,-40190.52262496,0.00013117,2]
[421845597,1778211039000,-12124.9876384,0.00013117,2]
[421845586,1778211039000,-500.0,0.00013116,2]
[421845578,1778211039000,-500.0,0.00013116,2]
[421845584,1778211039000,-500.0,0.00013116,2]
[421845579,1778211039000,-500.0,0.00013116,2]
[421845582,1778211039000,-500.0,0.00013116,2]
[421845583,1778211039000,-500.0,0.00013116,2]
[421845581,1778211039000,-500.0,0.00013116,2]
[421845601,1778211039000,-55209.81968379,0.00013117,2]
[421845836,1778211041000,-84763.24285461,0.00013117,2]
[421845817,1778211041000,-3260.07256246,0.00013117,2]
[421845815,1778211041000,-397.80460642,0.00013117,2]
[421845813,1778211041000,-2278.4995,0.00013117,2]
[421845938,1778211044000,-600.0,0.00013117,2]
[421845941,1778211044000,-527.50353436,0.00013117,2]
[421845939,1778211044000,-388.64047566,0.00013117,2]
[421845940,1778211044000,-1458.670872,0.00013117,2]
[421845947,1778211047000,-23.45812733,0.00013117,2]
[421845946,1778211047000,-51736.74511569,0.00013117,2]
[421845951,1778211068000,1106.4408496,7.945e-05,2]
[421845950,1778211068000,2121.5837368,7.945e-05,2]
[421845949,1778211068000,1968.6235286,7.945e-05,2]
[421845952,1778211074000,165.63,0.00010587,2]
[421845953,1778211101000,-3427.19152665,0.00012932,2]
[421845955,1778211200000,-10000.01,0.00012932,2]
[421845956,1778211201000,-10000.01,0.00012932,2]
[421845958,1778211201000,-9700.01,0.00012932,2]
[421845957,1778211201000,-300.0,0.00012931,2]
[421845962,1778211202000,-10000.01,0.00012931,2]
[421845961,1778211202000,-10000.01,0.00012931,2]
[421845960,1778211202000,-10000.01,0.00012931,2]
[421845959,1778211202000,-10000.01,0.00012932,2]
[421845964,1778211203000,-150.0,0.0001293,2]
[421845965,1778211203000,-9850.01,0.00012931,2]
[421845963,1778211203000,-10000.01,0.00012931,2]
[421845966,1778211208000,166.50991395,0.00011149,30]
[421845967,1778211220000,-500.0,0.0001293,2]
[421845969,1778211298000,-500.0,0.0001293,2]
[421845971,1778211298000,-500.0,0.0001293,2]
[421845972,1778211298000,-500.0,0.0001264,2]
[421845970,1778211298000,-500.0,0.0001293,2]
[421845975,1778211299000,-500.0,0.0001264,2]
[421845973,1778211299000,-500.0,0.0001264,2]
[421845974,1778211299000,-500.0,0.0001264,2]
[421845981,1778211436000,-2274.22572793,0.0001289,2]
[421845980,1778211436000,-193.38378889,0.0001289,2]
[421845979,1778211436000,-300.0,0.00012889,2]
[421845978,1778211436000,-500.0,0.00012832,2]
[421845976,1778211436000,-517.95408318,0.00012832,2]
[421845977,1778211436000,-1214.4364,0.00012832,2]
[421845989,1778211438000,-346.02399795,0.0001293,2]
[421845982,1778211438000,-1503.97600205,0.0001289,2]
[421845983,1778211438000,-1200.0,0.00012929,2]
[421845984,1778211438000,-300.0,0.00012929,2]
[421845988,1778211438000,-500.0,0.0001293,2]
[421845985,1778211438000,-150.0,0.00012929,2]
[421845987,1778211438000,-500.0,0.0001293,2]
[421845986,1778211438000,-500.0,0.0001293,2]
[421845994,1778211439000,-169.64774323,0.0001293,2]
[421845990,1778211439000,-153.97600205,0.0001293,2]
[421845992,1778211439000,-500.0,0.0001293,2]
[421845991,1778211439000,-429.35024394,0.0001293,2]
[421845993,1778211439000,-500.0,0.0001293,2]
[421846001,1778211439000,-247.02601078,0.0001293,2]
[421845996,1778211439000,-500.0,0.0001293,2]
[421845997,1778211439000,-500.0,0.0001293,2]
[421845998,1778211439000,-500.0,0.0001293,2]
[421845999,1778211439000,-500.0,0.0001293,2]
[421846000,1778211439000,-500.0,0.0001293,2]
[421845995,1778211439000,-500.0,0.0001293,2]
[421846005,1778211441000,-500.0,0.0001293,2]
[421846004,1778211441000,-500.0,0.0001293,2]
[421846003,1778211441000,-500.0,0.0001293,2]
[421846002,1778211441000,-252.97398922,0.0001293,2]
[421846006,1778211442000,-500.0,0.0001293,2]
[421846007,1778211442000,-500.0,0.0001293,2]
[421846009,1778211442000,-469.76864002,0.0001293,2]
[421846010,1778211442000,-500.0,0.0001293,2]
[421846011,1778211442000,-500.0,0.0001293,2]
[421846012,1778211442000,-277.25737076,0.0001293,2]
[421846008,1778211442000,-500.0,0.0001293,2]
[421846013,1778211443000,-222.74262924,0.0001293,2]
[421846014,1778211443000,-500.0,0.0001293,2]
[421846016,1778211443000,-500.0,0.0001293,2]
[421846017,1778211443000,-500.0,0.0001293,2]
[421846015,1778211443000,-500.0,0.0001293,2]
[421846019,1778211443000,-500.0,0.0001293,2]
[421846021,1778211443000,-500.0,0.0001293,2]
[421846020,1778211443000,-500.0,0.0001293,2]
[421846022,1778211443000,-500.0,0.0001293,2]
[421846023,1778211443000,-277.25737076,0.0001293,2]
[421846018,1778211443000,-500.0,0.0001293,2]
[421846028,1778211445000,-500.0,0.0001293,2]
[421846024,1778211445000,-222.74262924,0.0001293,2]
[421846026,1778211445000,-500.0,0.0001293,2]
[421846025,1778211445000,-500.0,0.0001293,2]
[421846027,1778211445000,-500.0,0.0001293,2]
[421846031,1778211445000,-500.0,0.0001293,2]
[421846030,1778211445000,-500.0,0.0001293,2]
[421846032,1778211445000,-500.0,0.0001293,2]
[421846034,1778211445000,-387.28755124,0.0001293,2]
[421846033,1778211445000,-389.96981952,0.0001293,2]
[421846029,1778211445000,-500.0,0.0001293,2]
[421846042,1778211446000,-630.62975902,0.00012931,2]
[421846041,1778211446000,-2256.65779222,0.0001293,2]
[421846039,1778211446000,-250.0,0.0001293,2]
[421846040,1778211446000,-250.0,0.0001293,2]
[421846037,1778211446000,-500.0,0.0001293,2]
[421846038,1778211446000,-500.0,0.0001293,2]
[421846036,1778211446000,-500.0,0.0001293,2]
[421846035,1778211446000,-112.71244876,0.0001293,2]
[421846043,1778211448000,-5000.0,0.00012931,2]
[421846044,1778211450000,-5000.0,0.00012931,2]
[421846045,1778211451000,-5000.0,0.00012931,2]
[421846047,1778211698000,-2507.77,0.00012159,2]
[421846053,1778211764000,-73.13060506,0.00012535,2]
[421846050,1778211764000,-169.09030253,0.00012789,2]
[421846052,1778211764000,-95.95969747,0.00012329,2]
[421846051,1778211764000,-169.09030253,0.00012329,2]
[421846057,1778211765000,-169.09030253,0.00012535,2]
[421846056,1778211765000,-8.13030253,0.00012535,2]
[421846055,1778211765000,-160.96,0.00012115,2]
[421846054,1778211765000,-169.09030253,0.00012535,2]
[421846060,1778211955000,849.5128872,0.00012008,2]
[421846061,1778211955000,2121.5837368,0.00012008,2]
[421846062,1778211955000,937.243376,0.00012008,2]
[421846063,1778212050000,1184.3403608,0.00011962,2]
[421846064,1778212050000,815.6596392,0.00011962,2]
[421846065,1778212212000,1305.9240976,7.945e-05,2]
[421846066,1778212212000,785.3197324,7.945e-05,2]
[421846067,1778212217000,200.0,0.00011943,2]
[421846068,1778212224000,157.07,0.00011927,2]
[421846070,1778212231000,-477.0558266,0.00012057,2]
[421846078,1778212231000,-527.29531613,0.00012131,2]
[421846077,1778212231000,-22.9441734,0.00012057,2]
[421846080,1778212231000,-150.0,0.00012137,2]
[421846081,1778212231000,-70701.899846,0.00012138,2]
[421846083,1778212231000,-21184.85411571,0.00012138,2]
[421846082,1778212231000,-687.69603829,0.00012138,2]
[421846079,1778212231000,-815.94468387,0.00012131,2]
[421846084,1778212232000,-150.0,0.00012151,2]
[421846086,1778212232000,-299.92,0.0001226,2]
[421846085,1778212232000,-163.9489,0.0001226,2]
[421846087,1778212232000,-1000.0,0.00012297,2]
[421846089,1778212232000,-299.92,0.00012567,2]
[421846088,1778212232000,-80.55848735,0.00012535,2]
[421846091,1778212232000,-500.0,0.00012689,2]
[421846090,1778212232000,-12063.78,0.00012567,2]
[421846093,1778212232000,-170.93355101,0.00012731,2]
[421846094,1778212232000,-181.23365624,0.00012811,2]
[421846099,1778212232000,-472.97887367,0.0001282,2]
[421846095,1778212232000,-500.0,0.0001282,2]
[421846105,1778212232000,-500310.82517607,0.00012821,2]
[421846103,1778212232000,-500.0,0.0001282,2]
[421846104,1778212232000,-500.0,0.0001282,2]
[421846100,1778212232000,-500.0,0.0001282,2]
[421846092,1778212232000,-778.30933576,0.00012731,2]
[421846101,1778212232000,-500.0,0.0001282,2]
[421846096,1778212232000,-500.0,0.0001282,2]
[421846098,1778212232000,-168.75342027,0.0001282,2]
[421846097,1778212232000,-500.0,0.0001282,2]
[421846102,1778212232000,-514.91188839,0.0001282,2]
[421846113,1778212237000,-380.52932165,0.00012821,2]
[421846112,1778212237000,-26491.54762082,0.00012821,2]
[421846115,1778212238000,152.0,0.00011883,7]
[421846114,1778212238000,152.0,8.162e-05,2]
[421846116,1778212239000,152.0,0.00011883,7]
[421846128,1778212240000,827.1940044,0.00012038,2]
[421846130,1778212240000,152.0,0.00011151,30]
[421846131,1778212240000,-671.1084327,0.00012038,2]
[421846129,1778212240000,2121.5837368,0.00012038,2]
[421846197,1778212243000,-509.0,0.00012038,2]
[421846200,1778212246000,-1729.999998,0.00012038,2]
[421846199,1778212246000,-452.55608645,0.00012038,2]
[421846218,1778212262000,150.0,0.00012037,2]
[421846219,1778212268000,1354.500764,7.945e-05,2]